[Event "*** Titled Tuesday Blitz"]
[Site "Chess.com"]
[Date "2021.04.06"]
[Round "5"]
[White "Andreikka"]
[Black "PolandHussars"]
[Result "1/2-1/2"]
[WhiteElo "2864"]
[BlackElo "2613"]
[TimeControl "180+1"]
[EndTime "10:57:32 PDT"]
[Termination "Game drawn by agreement"]

1. d4 {[%clk 0:03:00.9]} 1... Nf6 {[%clk 0:02:52.7]} 2. Nc3 {[%clk 0:03:01.1]}
2... d5 {[%clk 0:02:49.8]} 3. Bf4 {[%clk 0:03:01.2]} 3... c6 {[%clk 0:02:49.8]}
4. e3 {[%clk 0:03:00.3]} 4... Qb6 {[%clk 0:02:49.4]} 5. Qc1 {[%clk 0:02:55.1]}
5... Nh5 {[%clk 0:02:45]} 6. Bg5 {[%clk 0:02:54]} 6... h6 {[%clk 0:02:45.2]} 7.
Bh4 {[%clk 0:02:54]} 7... g5 {[%clk 0:02:45.1]} 8. Bg3 {[%clk 0:02:53.4]} 8...
Nxg3 {[%clk 0:02:44.8]} 9. hxg3 {[%clk 0:02:54.3]} 9... Bg7 {[%clk 0:02:45.4]}
10. f4 {[%clk 0:02:51]} 10... Nd7 {[%clk 0:02:41.2]} 11. Nf3 {[%clk 0:02:49.5]}
11... gxf4 {[%clk 0:02:38.6]} 12. gxf4 {[%clk 0:02:49.2]} 12... Nf6 {[%clk
0:02:38.5]} 13. Bd3 {[%clk 0:02:49.4]} 13... Be6 {[%clk 0:02:28.8]} 14. Rh4
{[%clk 0:02:29.7]} 14... O-O-O {[%clk 0:02:25.3]} 15. Ne5 {[%clk 0:02:28.7]}
15... Nd7 {[%clk 0:02:20.1]} 16. Nf3 {[%clk 0:02:14.6]} 16... Bf6 {[%clk
0:02:16.2]} 17. Rh2 {[%clk 0:02:12.9]} 17... Bg4 {[%clk 0:02:13.3]} 18. Ne2
{[%clk 0:02:04.7]} 18... Bxf3 {[%clk 0:01:57]} 19. gxf3 {[%clk 0:02:05.6]} 19...
Kb8 {[%clk 0:01:57.3]} 20. c3 {[%clk 0:02:00.6]} 20... c5 {[%clk 0:01:55.5]} 21.
Kf2 {[%clk 0:02:00.4]} 21... Rc8 {[%clk 0:01:53.3]} 22. Qd2 {[%clk 0:02:00.3]}
22... cxd4 {[%clk 0:01:41]} 23. cxd4 {[%clk 0:01:58]} 23... h5 {[%clk 0:01:38]}
24. Rg1 {[%clk 0:01:49]} 24... h4 {[%clk 0:01:35.1]} 25. a3 {[%clk 0:01:48.9]}
25... e6 {[%clk 0:01:30.1]} 26. Rg4 {[%clk 0:01:38.8]} 26... a6 {[%clk
0:01:21.1]} 27. Qb4 {[%clk 0:01:16.1]} 27... Qxb4 {[%clk 0:01:15.5]} 28. axb4
{[%clk 0:01:15.7]} 28... Nb6 {[%clk 0:01:14.5]} 29. b3 {[%clk 0:01:11.2]} 29...
Be7 {[%clk 0:00:55.3]} 30. Rg7 {[%clk 0:01:10.4]} 30... Rhf8 {[%clk 0:00:54.4]}
31. f5 {[%clk 0:01:05.4]} 31... Bf6 {[%clk 0:00:43.6]} 32. Rg4 {[%clk 0:01:03]}
32... Nd7 {[%clk 0:00:27.8]} 33. fxe6 {[%clk 0:01:00.4]} 33... fxe6 {[%clk
0:00:28.7]} 34. Nf4 {[%clk 0:00:56.6]} 34... Rc3 {[%clk 0:00:24.2]} 35. Bg6
{[%clk 0:00:54.9]} 35... Rxb3 {[%clk 0:00:19.4]} 36. Nxe6 {[%clk 0:00:50.9]}
36... Rc8 {[%clk 0:00:17.2]} 37. Nc5 {[%clk 0:00:43.2]} 37... Nxc5 {[%clk
0:00:17.6]} 38. bxc5 {[%clk 0:00:40.5]} 38... b6 {[%clk 0:00:18.1]} 39. Bf7
{[%clk 0:00:35.5]} 39... bxc5 {[%clk 0:00:17.6]} 40. Bxd5 {[%clk 0:00:35.5]}
40... Rb2+ {[%clk 0:00:17.8]} 41. Kg1 {[%clk 0:00:36.1]} 41... Rxh2 {[%clk
0:00:18.1]} 42. Kxh2 {[%clk 0:00:37]} 42... cxd4 {[%clk 0:00:19]} 43. exd4
{[%clk 0:00:36.9]} 43... Rd8 {[%clk 0:00:19.6]} 44. Bc4 {[%clk 0:00:34.7]} 44...
Rxd4 {[%clk 0:00:19.7]} 1/2-1/2

[Event "*** Titled Tuesday Blitz"]
[Site "Chess.com"]
[Date "2021.04.06"]
[Round "5"]
[White "ApoIogiA"]
[Black "DKmirl"]
[Result "1-0"]
[WhiteElo "2193"]
[BlackElo "1928"]
[TimeControl "180+1"]
[EndTime "10:57:32 PDT"]
[Termination "ApoIogiA won on time"]

1. d4 {[%clk 0:03:00.5]} 1... Nf6 {[%clk 0:02:57.4]} 2. c4 {[%clk 0:03:00.3]}
2... e6 {[%clk 0:02:57.9]} 3. Nc3 {[%clk 0:02:59.4]} 3... c5 {[%clk 0:02:57.7]}
4. d5 {[%clk 0:02:59.5]} 4... exd5 {[%clk 0:02:58.4]} 5. cxd5 {[%clk 0:03:00.4]}
5... d6 {[%clk 0:02:59.1]} 6. e4 {[%clk 0:03:00.8]} 6... g6 {[%clk 0:02:59.4]}
7. f3 {[%clk 0:03:01.2]} 7... Bg7 {[%clk 0:02:59.5]} 8. Nge2 {[%clk 0:02:58.5]}
8... O-O {[%clk 0:02:59.7]} 9. Ng3 {[%clk 0:02:49.9]} 9... a6 {[%clk 0:02:58.2]}
10. a4 {[%clk 0:02:49.5]} 10... Nbd7 {[%clk 0:02:46.1]} 11. Be2 {[%clk
0:02:45.4]} 11... Ne5 {[%clk 0:02:20.9]} 12. O-O {[%clk 0:02:40]} 12... Bd7
{[%clk 0:02:20.2]} 13. h3 {[%clk 0:02:25.1]} 13... Be8 {[%clk 0:01:55.1]} 14. f4
{[%clk 0:02:13.9]} 14... Ned7 {[%clk 0:01:52.9]} 15. Be3 {[%clk 0:02:10.8]}
15... Nb6 {[%clk 0:01:44]} 16. Qb3 {[%clk 0:01:37.8]} 16... Qc7 {[%clk
0:01:34.8]} 17. Rad1 {[%clk 0:01:33.7]} 17... Rc8 {[%clk 0:01:01.1]} 18. e5
{[%clk 0:01:22.9]} 18... Nfd7 {[%clk 0:00:43.3]} 19. e6 {[%clk 0:01:12.1]} 19...
Nf6 {[%clk 0:00:34.3]} 20. f5 {[%clk 0:01:05.2]} 20... Kh8 {[%clk 0:00:15.4]}
21. Nge4 {[%clk 0:00:47.1]} 21... Nxe4 {[%clk 0:00:15.1]} 22. Nxe4 {[%clk
0:00:45.8]} 22... Bxa4 {[%clk 0:00:15.9]} 23. Qd3 {[%clk 0:00:34.2]} 23... Bxd1
{[%clk 0:00:15.8]} 24. Bxd1 {[%clk 0:00:34.5]} 24... f6 {[%clk 0:00:12.4]} 25.
g4 {[%clk 0:00:23.5]} 25... Qe7 {[%clk 0:00:05.8]} 26. g5 {[%clk 0:00:16.8]}
26... fxg5 {[%clk 0:00:04.3]} 27. f6 {[%clk 0:00:17.3]} 27... Bxf6 {[%clk
0:00:04.2]} 28. Nxf6 {[%clk 0:00:17.2]} 28... Rxf6 {[%clk 0:00:03.8]} 29. Bd2
{[%clk 0:00:16.2]} 29... Rxf1+ {[%clk 0:00:04]} 30. Qxf1 {[%clk 0:00:17.1]}
30... Rf8 {[%clk 0:00:04.3]} 31. Bc3+ {[%clk 0:00:17.2]} 31... Kg8 {[%clk
0:00:04.3]} 32. Qg2 {[%clk 0:00:17.2]} 32... Nc8 {[%clk 0:00:01.4]} 33. Bc2
{[%clk 0:00:17.3]} 1-0

[Event "*** Titled Tuesday Blitz"]
[Site "Chess.com"]
[Date "2021.04.06"]
[Round "5"]
[White "CzechmVIII"]
[Black "akanga001"]
[Result "1-0"]
[WhiteElo "2213"]
[BlackElo "2018"]
[TimeControl "180+1"]
[EndTime "10:57:33 PDT"]
[Termination "CzechmVIII won by resignation"]

1. e4 {[%clk 0:03:00.9]} 1... c6 {[%clk 0:02:59.2]} 2. d4 {[%clk 0:03:00.3]}
2... d5 {[%clk 0:02:59.3]} 3. e5 {[%clk 0:03:00.7]} 3... c5 {[%clk 0:02:58.9]}
4. c4 {[%clk 0:02:59.8]} 4... e6 {[%clk 0:02:52]} 5. Nf3 {[%clk 0:02:59.8]} 5...
Nc6 {[%clk 0:02:50.3]} 6. cxd5 {[%clk 0:02:47.5]} 6... Nxd4 {[%clk 0:02:41.2]}
7. Nxd4 {[%clk 0:02:41.9]} 7... cxd4 {[%clk 0:02:40.3]} 8. Qxd4 {[%clk
0:01:55.1]} 8... Qxd5 {[%clk 0:02:35.4]} 9. Be3 {[%clk 0:01:32.7]} 9... Qxd4
{[%clk 0:02:25.5]} 10. Bxd4 {[%clk 0:01:33]} 10... Bb4+ {[%clk 0:02:23.2]} 11.
Nc3 {[%clk 0:01:30.6]} 11... Ne7 {[%clk 0:02:22.2]} 12. f4 {[%clk 0:01:23.3]}
12... Nc6 {[%clk 0:02:20.9]} 13. Be3 {[%clk 0:01:20.2]} 13... Bd7 {[%clk
0:02:12.3]} 14. Be2 {[%clk 0:01:10.6]} 14... Na5 {[%clk 0:01:54]} 15. O-O {[%clk
0:01:05.6]} 15... b6 {[%clk 0:01:43.4]} 16. Nb5 {[%clk 0:00:58.9]} 16... O-O
{[%clk 0:01:39.3]} 17. a3 {[%clk 0:00:58.3]} 17... Be7 {[%clk 0:01:38.4]} 18.
Rfd1 {[%clk 0:00:53.8]} 18... Nb3 {[%clk 0:01:36.8]} 19. Rxd7 {[%clk 0:00:48.3]}
19... Nxa1 {[%clk 0:01:28.6]} 20. Rxe7 {[%clk 0:00:48.3]} 20... a6 {[%clk
0:01:20.5]} 21. Nd6 {[%clk 0:00:46.6]} 21... b5 {[%clk 0:01:18.4]} 22. Bf3
{[%clk 0:00:41.7]} 22... Rab8 {[%clk 0:01:14.2]} 23. Ba7 {[%clk 0:00:40.1]}
23... Rbd8 {[%clk 0:01:11]} 24. Bb6 {[%clk 0:00:38.5]} 24... Rb8 {[%clk
0:01:09.2]} 25. Bc7 {[%clk 0:00:35.2]} 25... Nb3 {[%clk 0:00:57]} 26. Bxb8
{[%clk 0:00:34.6]} 26... Rxb8 {[%clk 0:00:55.6]} 27. Re8+ {[%clk 0:00:32.9]}
27... Rxe8 {[%clk 0:00:54.4]} 28. Nxe8 {[%clk 0:00:33.8]} 28... Kf8 {[%clk
0:00:53.4]} 29. Nd6 {[%clk 0:00:33.9]} 29... Ke7 {[%clk 0:00:52.7]} 30. Bb7
{[%clk 0:00:33.1]} 30... f6 {[%clk 0:00:49.1]} 31. Bxa6 {[%clk 0:00:30.5]} 31...
fxe5 {[%clk 0:00:47.9]} 32. fxe5 {[%clk 0:00:31.4]} 32... Nc5 {[%clk 0:00:47.2]}
33. Bxb5 {[%clk 0:00:29.4]} 33... Nb3 {[%clk 0:00:32.8]} 34. a4 {[%clk
0:00:24.7]} 34... Nd4 {[%clk 0:00:33.7]} 35. a5 {[%clk 0:00:23.5]} 35... Nxb5
{[%clk 0:00:22]} 36. Nxb5 {[%clk 0:00:23.6]} 36... Kd7 {[%clk 0:00:22.9]} 37. b4
{[%clk 0:00:22.2]} 37... Kc6 {[%clk 0:00:21.9]} 38. Nd6 {[%clk 0:00:22.3]} 38...
Kd7 {[%clk 0:00:19.4]} 39. b5 {[%clk 0:00:21.9]} 1-0

[Event "*** Titled Tuesday Blitz"]
[Site "Chess.com"]
[Date "2021.04.06"]
[Round "5"]
[White "Chessdude1987"]
[Black "Tpros"]
[Result "0-1"]
[WhiteElo "2308"]
[BlackElo "2523"]
[TimeControl "180+1"]
[EndTime "10:57:34 PDT"]
[Termination "Tpros won by checkmate"]

1. e4 {[%clk 0:03:00.9]} 1... c5 {[%clk 0:02:56.9]} 2. Nc3 {[%clk 0:03:00.3]}
2... a6 {[%clk 0:02:56.4]} 3. Nf3 {[%clk 0:02:58.3]} 3... d6 {[%clk 0:02:56.1]}
4. d4 {[%clk 0:02:56.5]} 4... cxd4 {[%clk 0:02:57]} 5. Nxd4 {[%clk 0:02:56.6]}
5... g6 {[%clk 0:02:57.4]} 6. Bc4 {[%clk 0:02:52.1]} 6... Bg7 {[%clk 0:02:56.9]}
7. O-O {[%clk 0:02:48.3]} 7... Nf6 {[%clk 0:02:56.5]} 8. h3 {[%clk 0:02:47.5]}
8... O-O {[%clk 0:02:56.3]} 9. a4 {[%clk 0:02:46.6]} 9... Bd7 {[%clk 0:02:56]}
10. Be3 {[%clk 0:02:43.6]} 10... Nc6 {[%clk 0:02:55.1]} 11. Nb3 {[%clk
0:02:38.4]} 11... Rc8 {[%clk 0:02:51.1]} 12. a5 {[%clk 0:02:33.1]} 12... Be6
{[%clk 0:02:27.4]} 13. Bd5 {[%clk 0:02:19.9]} 13... Bxd5 {[%clk 0:02:22.1]} 14.
exd5 {[%clk 0:02:16.5]} 14... Ne5 {[%clk 0:02:19]} 15. Na4 {[%clk 0:02:02.5]}
15... Nc4 {[%clk 0:02:13.9]} 16. Nb6 {[%clk 0:02:00.1]} 16... Nxe3 {[%clk
0:02:01.7]} 17. fxe3 {[%clk 0:01:59.1]} 17... Rc7 {[%clk 0:02:00.3]} 18. Qd3
{[%clk 0:01:56.3]} 18... Nd7 {[%clk 0:01:57.6]} 19. c3 {[%clk 0:01:47.7]} 19...
Nxb6 {[%clk 0:01:54.7]} 20. axb6 {[%clk 0:01:47.5]} 20... Rc8 {[%clk 0:01:47.3]}
21. Ra4 {[%clk 0:01:45.2]} 21... Qxb6 {[%clk 0:01:46.4]} 22. Rb4 {[%clk
0:01:45.4]} 22... Qc7 {[%clk 0:01:44.5]} 23. Nd4 {[%clk 0:01:41.3]} 23... Be5
{[%clk 0:01:39.5]} 24. Nf3 {[%clk 0:01:40.6]} 24... Bf6 {[%clk 0:01:38.7]} 25.
h4 {[%clk 0:01:39.6]} 25... h5 {[%clk 0:01:37.6]} 26. g4 {[%clk 0:01:38.6]}
26... Qd7 {[%clk 0:01:12.7]} 27. gxh5 {[%clk 0:01:36.5]} 27... gxh5 {[%clk
0:01:13.6]} 28. Rf2 {[%clk 0:01:33]} 28... Kh8 {[%clk 0:01:13.7]} 29. Ng5 {[%clk
0:01:27.8]} 29... Bxg5 {[%clk 0:01:11.3]} 30. hxg5 {[%clk 0:01:28.4]} 30... Qh3
{[%clk 0:01:00.3]} 31. Rbf4 {[%clk 0:00:55.3]} 31... Rg8 {[%clk 0:00:46.7]} 32.
Qd4+ {[%clk 0:00:54.8]} 32... f6 {[%clk 0:00:36]} 33. Rg2 {[%clk 0:00:40.7]}
33... Rg6 {[%clk 0:00:24.1]} 34. Rh4 {[%clk 0:00:38]} 34... Qf3 {[%clk
0:00:22.1]} 35. Rf4 {[%clk 0:00:35.1]} 35... Qh3 {[%clk 0:00:20.6]} 36. Rh4
{[%clk 0:00:32.1]} 36... Qf3 {[%clk 0:00:20.5]} 37. Rxh5+ {[%clk 0:00:22.6]}
37... Qxh5 {[%clk 0:00:18.6]} 38. Rh2 {[%clk 0:00:22.9]} 38... Rxg5+ {[%clk
0:00:15.8]} 39. Kh1 {[%clk 0:00:23.4]} 39... Rcg8 {[%clk 0:00:12.6]} 40. e4
{[%clk 0:00:19.6]} 40... Qxh2+ {[%clk 0:00:10.8]} 41. Kxh2 {[%clk 0:00:19.4]}
41... Rh5# {[%clk 0:00:11.7]} 0-1

[Event "*** Titled Tuesday Blitz"]
[Site "Chess.com"]
[Date "2021.04.06"]
[Round "5"]
[White "Fighter008"]
[Black "German_Bazeev"]
[Result "1-0"]
[WhiteElo "2608"]
[BlackElo "2790"]
[TimeControl "180+1"]
[EndTime "10:57:35 PDT"]
[Termination "Fighter008 won by resignation"]

1. e4 {[%clk 0:03:00.9]} 1... c6 {[%clk 0:02:58.9]} 2. Nc3 {[%clk 0:03:00.3]}
2... d5 {[%clk 0:02:58.1]} 3. Nf3 {[%clk 0:02:52.3]} 3... dxe4 {[%clk
0:02:58.4]} 4. Nxe4 {[%clk 0:02:53.2]} 4... Nf6 {[%clk 0:02:59]} 5. Qe2 {[%clk
0:02:53.7]} 5... Bg4 {[%clk 0:02:57.8]} 6. Nxf6+ {[%clk 0:02:49.1]} 6... gxf6
{[%clk 0:02:58.7]} 7. h3 {[%clk 0:02:42.4]} 7... Bxf3 {[%clk 0:02:59.1]} 8. Qxf3
{[%clk 0:02:43.3]} 8... Qd5 {[%clk 0:02:59.7]} 9. Be2 {[%clk 0:02:34.1]} 9...
Rg8 {[%clk 0:02:56.8]} 10. O-O {[%clk 0:02:31.8]} 10... Nd7 {[%clk 0:02:53.6]}
11. Qxd5 {[%clk 0:02:25.3]} 11... cxd5 {[%clk 0:02:53.3]} 12. d4 {[%clk
0:02:26]} 12... Rc8 {[%clk 0:02:48.6]} 13. c3 {[%clk 0:02:26.1]} 13... e6 {[%clk
0:02:46.3]} 14. a4 {[%clk 0:02:24]} 14... Bd6 {[%clk 0:02:45]} 15. Re1 {[%clk
0:02:23.2]} 15... f5 {[%clk 0:02:38.8]} 16. Bd3 {[%clk 0:02:22.9]} 16... Kd8
{[%clk 0:02:35.9]} 17. Bh6 {[%clk 0:01:59]} 17... Nf6 {[%clk 0:02:22.6]} 18. Bc1
{[%clk 0:01:36]} 18... Kd7 {[%clk 0:02:07.4]} 19. Kf1 {[%clk 0:01:31.5]} 19...
f4 {[%clk 0:01:50]} 20. Bd2 {[%clk 0:01:27.2]} 20... Rg7 {[%clk 0:01:39]} 21.
Be2 {[%clk 0:01:24.9]} 21... Ne4 {[%clk 0:01:35.3]} 22. Bc1 {[%clk 0:01:22.1]}
22... Rcg8 {[%clk 0:01:30.2]} 23. Bf3 {[%clk 0:01:22.4]} 23... Ng5 {[%clk
0:01:30.9]} 24. Ke2 {[%clk 0:01:14.4]} 24... Nxf3 {[%clk 0:01:30.2]} 25. gxf3
{[%clk 0:01:15.3]} 25... Rg2 {[%clk 0:01:10.7]} 26. Bd2 {[%clk 0:01:14]} 26...
f6 {[%clk 0:01:07.3]} 27. Rf1 {[%clk 0:01:05.4]} 27... e5 {[%clk 0:01:06.5]} 28.
Kd3 {[%clk 0:01:04.3]} 28... Ke6 {[%clk 0:01:02.5]} 29. Rae1 {[%clk 0:00:59.2]}
29... Kf5 {[%clk 0:01:02.4]} 30. b3 {[%clk 0:00:53.9]} 30... Re8 {[%clk
0:00:58.1]} 31. c4 {[%clk 0:00:46.6]} 31... e4+ {[%clk 0:00:58.3]} 32. Kc2
{[%clk 0:00:46.9]} 32... e3 {[%clk 0:00:54.8]} 33. Kd3 {[%clk 0:00:31.7]} 33...
Rh2 {[%clk 0:00:24.9]} 34. fxe3 {[%clk 0:00:30]} 34... fxe3 {[%clk 0:00:25.3]}
35. Rxe3 {[%clk 0:00:28.9]} 35... Rxd2+ {[%clk 0:00:25.1]} 36. Kxd2 {[%clk
0:00:28.8]} 36... Bf4 {[%clk 0:00:25.4]} 37. Re1 {[%clk 0:00:29.4]} 37... Rg8
{[%clk 0:00:08.6]} 38. Kd3 {[%clk 0:00:29.5]} 38... Bxe3 {[%clk 0:00:09.1]} 39.
Rxe3 {[%clk 0:00:30.4]} 39... Rg3 {[%clk 0:00:09.7]} 40. cxd5 {[%clk 0:00:30.4]}
40... Rg8 {[%clk 0:00:09]} 41. Re7 {[%clk 0:00:28.8]} 41... Rd8 {[%clk
0:00:08.2]} 42. Rxb7 {[%clk 0:00:28.6]} 1-0

[Event "*** Titled Tuesday Blitz"]
[Site "Chess.com"]
[Date "2021.04.06"]
[Round "5"]
[White "frenchpin"]
[Black "Ladislav1969"]
[Result "1-0"]
[WhiteElo "2515"]
[BlackElo "2348"]
[TimeControl "180+1"]
[EndTime "10:57:35 PDT"]
[Termination "frenchpin won on time"]

1. e4 {[%clk 0:02:50.6]} 1... c5 {[%clk 0:02:59.6]} 2. Nf3 {[%clk 0:02:49.5]}
2... e6 {[%clk 0:03:00.5]} 3. c3 {[%clk 0:02:49.1]} 3... Nf6 {[%clk 0:02:59.4]}
4. e5 {[%clk 0:02:48.9]} 4... Nd5 {[%clk 0:02:59.8]} 5. Bc4 {[%clk 0:02:49.5]}
5... Nc6 {[%clk 0:02:55.6]} 6. d4 {[%clk 0:02:48.4]} 6... cxd4 {[%clk
0:02:52.8]} 7. cxd4 {[%clk 0:02:49.3]} 7... d6 {[%clk 0:02:50.6]} 8. O-O {[%clk
0:02:49.4]} 8... Nb6 {[%clk 0:02:48]} 9. Bd3 {[%clk 0:02:46.5]} 9... dxe5 {[%clk
0:02:37.3]} 10. dxe5 {[%clk 0:02:45.4]} 10... Bd7 {[%clk 0:02:25.8]} 11. a3
{[%clk 0:02:41.6]} 11... Qc7 {[%clk 0:02:22.7]} 12. Qe2 {[%clk 0:02:37.4]} 12...
Bc5 {[%clk 0:02:18.4]} 13. Nc3 {[%clk 0:02:34.1]} 13... Nd4 {[%clk 0:02:13.1]}
14. Nxd4 {[%clk 0:02:30]} 14... Bxd4 {[%clk 0:02:13.4]} 15. Nb5 {[%clk
0:02:28.9]} 15... Qxe5 {[%clk 0:02:11.7]} 16. Nxd4 {[%clk 0:02:22.8]} 16... Qxd4
{[%clk 0:02:10]} 17. Rd1 {[%clk 0:02:21]} 17... Qa4 {[%clk 0:01:37]} 18. Qh5
{[%clk 0:02:07.2]} 18... g6 {[%clk 0:01:33.1]} 19. Qe2 {[%clk 0:02:05.8]} 19...
Qh4 {[%clk 0:00:37.7]} 20. g3 {[%clk 0:01:56.9]} 20... Qf6 {[%clk 0:00:36.4]}
21. Bf4 {[%clk 0:01:52.5]} 21... O-O {[%clk 0:00:33.9]} 22. Be5 {[%clk
0:01:52.4]} 22... Qe7 {[%clk 0:00:26.8]} 23. Be4 {[%clk 0:01:52.1]} 23... Nd5
{[%clk 0:00:17.5]} 24. b4 {[%clk 0:01:29.7]} 24... a6 {[%clk 0:00:16.5]} 25. Bd4
{[%clk 0:01:24.3]} 25... Bc6 {[%clk 0:00:15.6]} 26. Bc5 {[%clk 0:01:22.5]} 26...
Qf6 {[%clk 0:00:15.5]} 27. Bxf8 {[%clk 0:01:19.8]} 27... Rxf8 {[%clk 0:00:15.8]}
28. Rac1 {[%clk 0:01:16.5]} 28... Re8 {[%clk 0:00:15.1]} 29. Qd2 {[%clk
0:01:05.6]} 29... h5 {[%clk 0:00:14.5]} 30. h4 {[%clk 0:01:01.8]} 30... Qe5
{[%clk 0:00:12.1]} 31. Re1 {[%clk 0:00:59.1]} 31... Qf6 {[%clk 0:00:10]} 32. a4
{[%clk 0:00:53.4]} 32... Rd8 {[%clk 0:00:07]} 33. b5 {[%clk 0:00:47.9]} 33...
axb5 {[%clk 0:00:06.6]} 34. axb5 {[%clk 0:00:48.8]} 34... Bxb5 {[%clk 0:00:07]}
35. Qa5 {[%clk 0:00:45.8]} 35... Bc6 {[%clk 0:00:05.9]} 36. Bg2 {[%clk
0:00:40.6]} 36... Re8 {[%clk 0:00:05.6]} 37. Rcd1 {[%clk 0:00:36.1]} 37... Qb2
{[%clk 0:00:04.9]} 38. Bxd5 {[%clk 0:00:32.7]} 38... exd5 {[%clk 0:00:02.5]} 39.
Rxe8+ {[%clk 0:00:30.9]} 39... Bxe8 {[%clk 0:00:02.4]} 40. Qxd5 {[%clk
0:00:30.6]} 40... Bc6 {[%clk 0:00:01.3]} 41. Qd8+ {[%clk 0:00:30]} 1-0

[Event "*** Titled Tuesday Blitz"]
[Site "Chess.com"]
[Date "2021.04.06"]
[Round "5"]
[White "mamonika"]
[Black "Fraler15"]
[Result "0-1"]
[WhiteElo "2027"]
[BlackElo "2222"]
[TimeControl "180+1"]
[EndTime "10:57:36 PDT"]
[Termination "Fraler15 won on time"]

1. e4 {[%clk 0:03:00.9]} 1... c5 {[%clk 0:02:56.5]} 2. Nf3 {[%clk 0:03:00.4]}
2... e6 {[%clk 0:02:56.6]} 3. d4 {[%clk 0:03:00.7]} 3... cxd4 {[%clk 0:02:57.5]}
4. Nxd4 {[%clk 0:03:01.4]} 4... Nf6 {[%clk 0:02:57.5]} 5. Nc3 {[%clk 0:03:01.7]}
5... Nc6 {[%clk 0:02:58.1]} 6. Ndb5 {[%clk 0:02:53.4]} 6... Bc5 {[%clk
0:02:57.5]} 7. Bg5 {[%clk 0:02:44.1]} 7... a6 {[%clk 0:02:45.7]} 8. Nd6+ {[%clk
0:02:39.4]} 8... Ke7 {[%clk 0:02:45.1]} 9. Nc4 {[%clk 0:02:22.7]} 9... h6 {[%clk
0:02:39.1]} 10. Bh4 {[%clk 0:02:16.9]} 10... Re8 {[%clk 0:02:26.6]} 11. e5
{[%clk 0:02:15]} 11... g5 {[%clk 0:02:16.9]} 12. exf6+ {[%clk 0:02:15.2]} 12...
Kf8 {[%clk 0:02:12.5]} 13. Qh5 {[%clk 0:02:09.9]} 13... Qxf6 {[%clk 0:02:09.4]}
14. Bg3 {[%clk 0:02:06.6]} 14... d5 {[%clk 0:02:06.2]} 15. Nd6 {[%clk
0:01:57.6]} 15... Rd8 {[%clk 0:01:52.7]} 16. Nce4 {[%clk 0:01:34.8]} 16... dxe4
{[%clk 0:01:46.4]} 17. Nxe4 {[%clk 0:01:34.5]} 17... Qxb2 {[%clk 0:01:34.7]} 18.
Qxh6+ {[%clk 0:01:32.7]} 18... Ke8 {[%clk 0:01:28]} 19. Qf6 {[%clk 0:00:44.1]}
19... Bb4+ {[%clk 0:01:18.3]} 20. Ke2 {[%clk 0:00:41.5]} 20... Qxc2+ {[%clk
0:00:40.1]} 21. Ke3 {[%clk 0:00:21]} 21... Bd2+ {[%clk 0:00:20.9]} 22. Nxd2
{[%clk 0:00:12.8]} 22... Qxd2+ {[%clk 0:00:20.7]} 23. Kf3 {[%clk 0:00:13.7]}
23... Nd4+ {[%clk 0:00:16]} 24. Kg4 {[%clk 0:00:13.4]} 24... e5+ {[%clk
0:00:16.4]} 25. Kh5 {[%clk 0:00:13.1]} 25... Bf5 {[%clk 0:00:09.9]} 26. Qxe5+
{[%clk 0:00:12.6]} 26... Be6 {[%clk 0:00:05.6]} 27. Bc4 {[%clk 0:00:11.6]} 27...
Qc3 {[%clk 0:00:02.2]} 28. Bxe6 {[%clk 0:00:08.8]} 28... fxe6 {[%clk 0:00:03.1]}
29. Rac1 {[%clk 0:00:07.4]} 29... Qb4 {[%clk 0:00:01.8]} 30. Qh8+ {[%clk
0:00:04.4]} 30... Qf8 {[%clk 0:00:01.9]} 0-1

[Event "*** Titled Tuesday Blitz"]
[Site "Chess.com"]
[Date "2021.04.06"]
[Round "5"]
[White "joejan"]
[Black "freshfoodcompany"]
[Result "1-0"]
[WhiteElo "2291"]
[BlackElo "2413"]
[TimeControl "180+1"]
[EndTime "10:57:38 PDT"]
[Termination "joejan won on time"]

1. e4 {[%clk 0:03:00.9]} 1... c6 {[%clk 0:02:59.5]} 2. Nc3 {[%clk 0:03:00.1]}
2... d5 {[%clk 0:02:59.9]} 3. Nf3 {[%clk 0:03:00.4]} 3... dxe4 {[%clk
0:03:00.4]} 4. Nxe4 {[%clk 0:02:59.3]} 4... Nf6 {[%clk 0:03:01]} 5. Ng3 {[%clk
0:02:59.6]} 5... h5 {[%clk 0:02:56.7]} 6. h4 {[%clk 0:02:58]} 6... Bg4 {[%clk
0:02:56.4]} 7. Be2 {[%clk 0:02:58.3]} 7... e6 {[%clk 0:02:52.8]} 8. d4 {[%clk
0:02:57.2]} 8... Nbd7 {[%clk 0:02:50.2]} 9. c3 {[%clk 0:02:55.3]} 9... Bd6
{[%clk 0:02:48.9]} 10. Bg5 {[%clk 0:02:52.9]} 10... Bxg3 {[%clk 0:02:44.5]} 11.
fxg3 {[%clk 0:02:51.2]} 11... Qc7 {[%clk 0:02:43.4]} 12. Bf4 {[%clk 0:02:50.6]}
12... Qb6 {[%clk 0:02:41.9]} 13. Qc2 {[%clk 0:02:47.8]} 13... Nd5 {[%clk
0:02:40.1]} 14. O-O {[%clk 0:02:43.4]} 14... Nxf4 {[%clk 0:02:38]} 15. gxf4
{[%clk 0:02:42.8]} 15... O-O {[%clk 0:02:35.8]} 16. Ne5 {[%clk 0:02:42.1]} 16...
Nxe5 {[%clk 0:02:31.4]} 17. fxe5 {[%clk 0:02:41.4]} 17... Bxe2 {[%clk 0:02:30]}
18. Qxe2 {[%clk 0:02:40.3]} 18... c5 {[%clk 0:02:30.5]} 19. Rf4 {[%clk
0:02:32.5]} 19... cxd4 {[%clk 0:02:28.7]} 20. cxd4 {[%clk 0:02:31.5]} 20... Rad8
{[%clk 0:02:29.3]} 21. Rd1 {[%clk 0:02:27.5]} 21... Rd5 {[%clk 0:02:29.7]} 22.
Qxh5 {[%clk 0:02:24]} 22... f5 {[%clk 0:01:54.7]} 23. Qe2 {[%clk 0:02:10.5]}
23... Rfd8 {[%clk 0:01:52.3]} 24. Qf2 {[%clk 0:02:01.6]} 24... Rxe5 {[%clk
0:01:50.5]} 25. h5 {[%clk 0:01:50.2]} 25... Re4 {[%clk 0:01:23.1]} 26. Rxe4
{[%clk 0:01:46.9]} 26... fxe4 {[%clk 0:01:24]} 27. Qe3 {[%clk 0:01:45.4]} 27...
e5 {[%clk 0:01:22.6]} 28. Qxe4 {[%clk 0:01:37.8]} 28... exd4 {[%clk 0:01:11.4]}
29. Rd3 {[%clk 0:01:34.4]} 29... Rc8 {[%clk 0:00:45]} 30. Qxd4 {[%clk
0:01:26.4]} 30... Rc1+ {[%clk 0:00:42.2]} 31. Kh2 {[%clk 0:01:24.3]} 31... Qc7+
{[%clk 0:00:40.1]} 32. Qd6 {[%clk 0:01:24.1]} 32... Qxd6+ {[%clk 0:00:39.9]} 33.
Rxd6 {[%clk 0:01:23.5]} 33... Rc2 {[%clk 0:00:39.8]} 34. b4 {[%clk 0:01:10.4]}
34... Rxa2 {[%clk 0:00:35.9]} 35. Rd7 {[%clk 0:01:10.2]} 35... b6 {[%clk
0:00:33.6]} 36. Kh3 {[%clk 0:01:10.2]} 36... a6 {[%clk 0:00:30.4]} 37. Rd6
{[%clk 0:01:07.9]} 37... b5 {[%clk 0:00:29.5]} 38. g4 {[%clk 0:01:07.5]} 38...
Rb2 {[%clk 0:00:26.4]} 39. Rxa6 {[%clk 0:01:05.3]} 39... Rxb4 {[%clk 0:00:26.9]}
40. Kh4 {[%clk 0:01:05.7]} 40... Rb1 {[%clk 0:00:20.6]} 41. g5 {[%clk
0:01:04.4]} 41... Kh7 {[%clk 0:00:16.2]} 42. Ra8 {[%clk 0:01:00.9]} 42... Rb4+
{[%clk 0:00:15.4]} 43. Kg3 {[%clk 0:00:59.3]} 43... Rc4 {[%clk 0:00:15.6]} 44.
Ra7 {[%clk 0:00:52.4]} 44... Kg8 {[%clk 0:00:12]} 45. g6 {[%clk 0:00:50.6]}
45... Rc8 {[%clk 0:00:04.2]} 46. Rb7 {[%clk 0:00:48.7]} 46... Rf8 {[%clk
0:00:02.9]} 47. Rxb5 {[%clk 0:00:47.7]} 47... Kh8 {[%clk 0:00:02.9]} 48. Kg4
{[%clk 0:00:46.8]} 48... Kg8 {[%clk 0:00:02.4]} 49. Rb7 {[%clk 0:00:46.4]} 49...
Rd8 {[%clk 0:00:01.8]} 50. Re7 {[%clk 0:00:42.9]} 1-0